[Event "Romanian Rapid Open 2022"]
[Site "Sebes"]
[Date "2022.12.02"]
[Round "5.2"]
[White "Miron, Lucian-Costin"]
[Black "Ghimpu, Samuel-Timotei"]
[Result "1-0"]
[ECO "A11"]
[WhiteElo "2510"]
[BlackElo "2455"]
[Annotator "TA"]
[PlyCount "121"]
[EventDate "2022.12.02"]
[EventType "rapid"]
[EventCountry "ROU"]
[SourceTitle "playchess.com"]
[Source "ChessBase"]
[SourceQuality "1"]
[TimeControl "600+5"]

{[%evp 9,121,-6,14,22,27,17,8,9,32,29,39,31,41,26,23,12,17,23,21,21,27,22,32,23,33,33,27,13,41,32,31,33,22,4,50,20,53,47,46,24,17,12,54,68,38,0,-18,-83,0,0,0,0,0,0,0,-19,0,-93,-93,-84,-33,-38,58,58,79,-29,-37,-25,0,-5,-5,-5,0,-27,0,0,0,0,0,0,0,0,0,0,0,0,0,27,67,87,12823,12829,12830,12830,12829,12829,12831,12830,12828,12827,12833,12831,12839,12840,12841,12841,12841,12842,12842,12840,12840,12841,12841,12841]} 1. Nf3 {[%emt 0:00:01]} d5 {[%emt 0:10:10]} 2. g3 {[%emt 0:00:03]} g6 {[%emt 0:00:00]} 3. c4 {[%emt 0:00:10]} c6 {[%emt 0:00:00]} 4. Bg2 {[%emt 0:00:01]} Bg7 {[%emt 0:00:00]} 5. Qa4 {[%emt 0:00:01]} Nd7 {[%emt 0:00:00]} 6. cxd5 {[%emt 0:00:07] A11: English Opening: 1...c6.} Nb6 {[%emt 0:00:00] [#]} 7. Qd1 $146 {[%emt 0:00:28] dxc6 is the strong threat.} (7. Qb3 $5 {[%cal Rd5c6]}) ({Predecessor:} 7. Qa3 cxd5 8. O-O Nf6 9. d3 O-O 10. Be3 Re8 11. Bd4 Nbd7 12. Ne5 Ng4 13. Nxf7 Kxf7 14. Bxd5+ {0-1 (38) Andreikin,D (2729)-Bharath,S (2479) Chess.com INT 2022}) 7... cxd5 {[%emt 0:00:00]} 8. d4 {[%emt 0:00:19] Against e5. The position is equal.} Nh6 {[%emt 0:00:00]} 9. O-O {[%emt 0:00:16]} O-O {[%emt 0:00:00]} 10. Nc3 {[%emt 0:00:17]} Nf5 {[%emt 0:00:00]} 11. Bf4 {[%emt 0:00:49]} Bd7 {[%emt 0:00:00]} 12. Rc1 {[%emt 0:00:35]} Rc8 {[%emt 0:00:00]} 13. b3 {[%emt 0:00:01]} Re8 {[%emt 0:00:00]} 14. h3 {[%emt 0:00:51]} Bc6 {[%emt 0:00:00]} 15. g4 {[%emt 0:00:32]} Nd6 {[%emt 0:00:00]} 16. Ne5 {[%emt 0:00:01]} f6 {[%emt 0:00:00]} 17. Nxc6 {[%emt 0:00:20]} bxc6 {[%emt 0:00:00]} 18. Bg3 {[%emt 0:01:18]} f5 {[%emt 0:00:00]} 19. e3 {[%emt 0:00:16]} e6 {[%emt 0:00:07]} 20. Rc2 {[%emt 0:00:10]} c5 {[%emt 0:00:45]} 21. Ne2 {[%emt 0:01:54]} cxd4 {[%emt 0:00:09]} (21... c4 $11 {should be considered.}) 22. Nxd4 {[%emt 0:00:08]} Ne4 {[%emt 0:00:21]} 23. Bxe4 $1 {[%emt 0:00:47]} dxe4 {[%emt 0:00:06]} 24. Rd2 {[%emt 0:00:28][%cal Od4f5] Inhibits f4.} (24. Nc6 $5 {[%cal Rc6d8]} Qxd1 25. Rxd1 $14) 24... Qe7 {[%emt 0:00:17]} 25. Nb5 {[%emt 0:00:08]} Red8 {[%emt 0:00:03]} 26. Nd6 {[%emt 0:00:08]} Ra8 {[%emt 0:00:02]} 27. Nc4 {[%emt 0:00:41]} (27. gxf5 $14 exf5 28. b4) 27... Nd5 $11 {[%emt 0:00:09]} 28. Qc1 {[%emt 0:00:08]} (28. gxf5 $11 {remains equal.} Nc3 29. Rxd8+ Rxd8 30. f6 Qxf6 31. Qc2) 28... a5 {[%emt 0:00:06]} ({Black should play} 28... fxg4 $17 29. h4 (29. hxg4 Qg5 $17) 29... Qf8) 29. Rfd1 {[%emt 0:00:02]} Rdc8 {[%emt 0:00:06]} 30. Rxd5 {[%emt 0:00:25]} exd5 {[%emt 0:00:01]} 31. Rxd5 {[%emt 0:00:01]} fxg4 {[%emt 0:00:03]} 32. hxg4 {[%emt 0:00:01]} a4 {[%emt 0:00:03] Threatens to win with ...axb3.} 33. Kg2 {[%emt 0:00:09] [#]} (33. Qd1 $11 {keeps the balance.}) 33... axb3 $1 $17 {[%emt 0:00:03]} 34. axb3 {[%emt 0:00:01]} Qe6 {[%emt 0:00:06]} (34... Qf6 $17 35. Qd2 Qf3+ 36. Kh2 Bf6) 35. Qd1 $15 {[%emt 0:00:06]} h6 {[%emt 0:00:07]} ({Better is} 35... Rf8 $15) 36. Rd6 $1 $14 {[%emt 0:00:18]} Qf7 {[%emt 0:00:09] [#]} 37. Qd5 {[%emt 0:00:01]} (37. Ne5 $1 $16 {[%cal Re5f7]} Bxe5 38. Bxe5) 37... Qxd5 $11 {[%emt 0:00:05]} 38. Rxd5 {[%emt 0:00:01]} Re8 {[%emt 0:00:09]} 39. b4 {[%emt 0:00:14]} Ra4 {[%emt 0:00:02] Inhibits b5.} 40. Nd6 {[%emt 0:00:01]} Rd8 {[%emt 0:00:03]} 41. b5 {[%emt 0:00:02]} Bf8 {[%emt 0:00:06]} 42. Nxe4 {[%emt 0:00:09][%mdl 64]} Rxd5 {[%emt 0:00:08]} 43. Nf6+ {[%emt 0:00:01]} Kf7 44. Nxd5 {[%emt 0:00:01][%mdl 4096] Endgame Hoping for b6. KRB-KBN} Ke6 {[%emt 0:00:11] Prevents b6.} 45. b6 {[%emt 0:00:37] Black must now prevent b7.} Kxd5 {[%emt 0:00:06]} 46. b7 {[%emt 0:00:01]} Rb4 $1 {[%emt 0:00:02]} 47. b8=Q {[%emt 0:00:02]} ({Much worse is} 47. b8=B Ke4 48. Bgf4 Rb2 $17) ({Don't play} 47. b8=R $6 Rxb8 48. Bxb8 Be7 $16) 47... Rxb8 {[%emt 0:00:01]} 48. Bxb8 {[%emt 0:00:01] Strongly threatening Kf1. KB-KB} Ke4 $1 {[%emt 0:00:05]} 49. Bf4 {[%emt 0:00:24]} g5 $2 {[%emt 0:00:10][%mdl 8192] This move loses the game for Black.} (49... h5 $16) 50. Bc7 $18 {[%emt 0:00:01] White is clearly winning.} Bc5 {[%emt 0:00:05]} 51. Bd8 {[%emt 0:00:01]} Bd6 {[%emt 0:00:05]} 52. Bf6 {[%emt 0:00:02]} Bf8 {[%emt 0:00:02]} 53. Bd4 {[%emt 0:00:01]} Kd5 {[%emt 0:00:06]} 54. Kf3 {[%emt 0:00:01]} Ke6 {[%emt 0:00:00]} 55. Ke4 {[%emt 0:00:01]} Bd6 {[%emt 0:00:08]} 56. Bg7 {[%emt 0:00:20]} Kf7 {[%emt 0:00:00]} 57. Be5 {[%emt 0:00:02]} ({Worse is} 57. Bxh6 Kg6 $11) 57... Bb4 {[%emt 0:00:06]} 58. Kf5 {[%emt 0:00:03]} Be1 {[%emt 0:00:11]} 59. f3 {[%emt 0:00:02]} Bf2 {[%emt 0:00:02]} 60. e4 {[%emt 0:00:01]} Bb6 {[%emt 0:00:07]} 61. Bf6 {[%emt 0:00:03] Weighted Error Value: White=0.15 (very precise) /Black=0.14 (very precise)} 1-0

[Event "Romanian Rapid Open 2022"]
[Site "Sebes"]
[Date "2022.12.02"]
[Round "5.3"]
[White "Nevednichy, Vladislav"]
[Black "Ileana, George"]
[Result "0-1"]
[ECO "B94"]
[WhiteElo "2499"]
[BlackElo "2343"]
[Annotator "TA"]
[PlyCount "102"]
[EventDate "2022.12.02"]
[EventType "rapid"]
[EventCountry "ROU"]
[SourceTitle "playchess.com"]
[Source "ChessBase"]
[SourceQuality "1"]
[TimeControl "600+5"]

{[%evp 14,102,27,0,52,12,13,29,48,55,61,59,170,173,241,31,20,24,18,12,18,0,0,20,0,-23,-26,-27,-28,-23,-29,-44,-25,-93,-92,-89,-22,-94,-82,-135,-120,-97,-109,-132,-139,-153,0,0,0,0,5,3,12,11,41,47,69,-24,0,-8,-8,-20,0,0,0,0,49,-54,-36,-137,-178,-156,-175,-431,-397,-463,-458,-460,-441,-674,-670,-29983,-11859,-6222,-3358,-4926,-5208,-29942,-29941,-5334,-5173]} 1. e4 {[%emt 0:00:01]} c5 {[%emt 0:00:01]} 2. Nf3 {[%emt 0:00:02]} d6 {[%emt 0:00:01]} 3. d4 {[%emt 0:00:07]} cxd4 {[%emt 0:00:02]} 4. Nxd4 {[%emt 0:00:02]} Nf6 {[%emt 0:00:02]} 5. Nc3 {[%emt 0:00:02]} a6 {[%emt 0:00:05]} 6. Bg5 {[%emt 0:00:12]} Nbd7 {[%emt 0:00:09]} 7. f4 {[%emt 0:00:06]} h6 {[%emt 0:00:06]} 8. Bh4 {[%emt 0:00:22]} g6 {[%emt 0:00:07] B94: Sicilian Najdorf: 6 Bg5 Nbd7.} (8... e5 $11 9. Nf5 Qb6) 9. Qf3 {[%emt 0:00:35]} (9. Qe2 $5 {[%cal Re4e5]}) 9... Bg7 {[%emt 0:00:04]} 10. O-O-O {[%emt 0:00:03]} O-O {[%emt 0:00:11] White has an edge.} 11. g4 {[%emt 0:03:50]} e5 {[%emt 0:00:11] [#]} 12. Nf5 $146 {[%emt 0:00:06]} ({Predecessor:} 12. fxe5 Nxe5 13. Bxf6 Bxf6 14. Qg2 Bxg4 15. Be2 Bxe2 16. Ncxe2 Qb6 17. h4 Rac8 18. Nf4 {0-1 (55) Tang,A-Gao,Y Al Ain 2013}) 12... exf4 {[%emt 0:00:54]} (12... gxf5 $14 13. gxf5 Kh7) 13. Nxg7 $18 {[%emt 0:01:32]} (13. Nxd6 g5 14. Nxc8 Qxc8 $17) 13... Kxg7 {[%emt 0:00:06]} (13... Ne5 $142 14. Qxf4 g5) 14. Qxf4 $2 {[%emt 0:00:22]} (14. Rxd6 g5 15. Bf2 Qe7 $15) (14. g5 $1 $18 {[%cal Rg5f6]} hxg5 15. Bxg5) 14... g5 $14 {[%emt 0:01:11] [#]} 15. Bxg5 {[%emt 0:00:02]} hxg5 {[%emt 0:00:01]} 16. Qxg5+ {[%emt 0:00:01]} Kh8 {[%emt 0:00:01]} 17. Rxd6 {[%emt 0:00:54]} Nh7 $36 {[%emt 0:00:26][%mdl 2048] Black has the initiative. Pair of Knights!} 18. Qxd8 {[%emt 0:00:12]} Rxd8 {[%emt 0:00:02]} 19. Bc4 {[%emt 0:00:05]} Rf8 $1 {[%emt 0:00:11]} 20. h3 {[%emt 0:00:42]} b5 {[%emt 0:00:19]} 21. Bd5 {[%emt 0:00:02]} Rb8 {[%emt 0:00:01]} 22. h4 {[%emt 0:00:23]} Rb6 {[%emt 0:00:08]} 23. e5 {[%emt 0:00:09]} (23. Rxb6 $1 $11 {keeps the balance.} Nxb6 24. g5) 23... Rxd6 $17 {[%emt 0:00:17]} 24. exd6 {[%emt 0:00:01]} Ndf6 {[%emt 0:00:02]} (24... b4 $1 $17 {[%cal Rb4c3]} 25. Na4 Nhf6) 25. Bb3 {[%emt 0:00:23]} (25. g5 $11 b4 26. gxf6 bxc3 27. bxc3) 25... Bxg4 {[%emt 0:00:05]} 26. a4 {[%emt 0:00:02]} ({White should try} 26. Re1) 26... b4 {[%emt 0:00:07]} 27. Na2 {[%emt 0:00:04]} a5 {[%emt 0:00:02]} 28. c3 {[%emt 0:00:09]} bxc3 $1 {[%emt 0:00:12]} 29. Nxc3 {[%emt 0:00:01] [#]} Be6 $2 {[%emt 0:00:54]} (29... Nd7 $1 $17 {White must now prevent ...f5.} 30. Rf1 Nhf6) 30. Bxe6 $11 {[%emt 0:00:05]} fxe6 {[%emt 0:00:01]} 31. Re1 {[%emt 0:00:02]} Re8 {[%emt 0:00:03]} 32. Re5 {[%emt 0:00:19]} Nf8 {[%emt 0:00:11]} 33. Rxa5 {[%emt 0:00:02]} e5 {[%emt 0:00:06]} 34. Ra7 {[%emt 0:00:08][%mdl 1024] White has compensation.} N8d7 {[%emt 0:00:06]} 35. Nd1 {[%emt 0:00:49]} (35. a5 $14) 35... Rc8+ {[%emt 0:00:14]} 36. Rc7 {[%emt 0:00:04]} Ra8 {[%emt 0:00:03]} 37. b3 {[%emt 0:00:06]} Ra6 {[%emt 0:00:01]} 38. Ne3 {[%emt 0:00:12] Nc4 is the strong threat.} Rxd6 {[%emt 0:00:07]} (38... Kg8 {is interesting.} 39. Nc4 Kf7 40. a5 Ke6) 39. Nc4 {[%emt 0:00:01]} Rd3 {[%emt 0:00:59]} (39... Re6 $11) 40. Kc2 {[%emt 0:00:03]} (40. a5 $1 $14 Rxb3 41. a6 Rc3+ 42. Kb1 (42. Kb2 Nb6 $11) 42... Rb3+ 43. Kc2 Rc3+ 44. Kb1 (44. Kxc3 Nd5+ 45. Kc2 Nxc7 $11) 44... Rb3+ 45. Kc2) 40... e4 $1 $15 {[%emt 0:00:02]} 41. a5 {[%emt 0:00:06]} (41. Nb2 $15 Rd5 42. Nc4) 41... Nd5 $17 {[%emt 0:00:07]} 42. Rc8+ {[%emt 0:00:11]} Kg7 {[%emt 0:00:03]} 43. a6 $2 {[%emt 0:00:01]} (43. h5) 43... Nb4+ $19 {[%emt 0:00:06]} 44. Kb2 {[%emt 0:00:05] aiming for a7.} Nxa6 {[%emt 0:00:03]} 45. h5 {[%emt 0:00:16]} Nac5 {[%emt 0:00:09]} 46. Na5 {[%emt 0:00:24]} (46. b4 $142 Rb3+ 47. Kc2 Rxb4 48. Nd6) 46... e3 {[%emt 0:00:21][%cal Be4e3,Be3e2][%mdl 32] Hoping for ...Kf7.} 47. b4 {[%emt 0:00:04] [#]} Rd2+ {[%emt 0:00:19]} (47... Kf7 $142 $1 48. Rxc5 Nxc5 49. Nc6 Na4+ 50. Kc2 Rd5 51. b5 e2 52. Nb4 e1=Q 53. Nxd5 Qe4+ 54. Kd2 Qxd5+ 55. Kc2 Qd4 56. b6 Qc3+ 57. Kd1 Qb2 58. Ke1 Nc3 59. Kf1 Ne4 60. Kg1 Qf2+ 61. Kh1 Ng3#) 48. Ka3 {[%emt 0:00:12]} Ne4 {[%emt 0:00:37]} 49. h6+ {[%emt 0:00:06]} Kxh6 {[%emt 0:00:05] ( -> ...e2)} 50. Rc1 {[%emt 0:00:03]} e2 {[%emt 0:00:07]} 51. Re1 {[%emt 0:00:02]} Ng3 {[%emt 0:00:04] Both players deserved the win here.   Weighted Error Value: White=0.63/Black=0.36} 0-1

[Event "Romanian Rapid Open 2022"]
[Site "Sebes"]
[Date "2022.12.02"]
[Round "5.4"]
[White "Filip, Lucian-Ioan"]
[Black "Gavrilescu, David"]
[Result "0-1"]
[ECO "E01"]
[WhiteElo "2370"]
[BlackElo "2523"]
[Annotator "TA"]
[PlyCount "92"]
[EventDate "2022.12.02"]
[EventType "rapid"]
[EventCountry "ROU"]
[SourceTitle "playchess.com"]
[Source "ChessBase"]
[SourceQuality "1"]
[TimeControl "600+5"]

{[%evp 9,92,6,16,24,22,0,49,-27,-20,-60,-58,-50,-60,-72,-57,-116,-108,-114,-110,-99,-69,-68,-71,-75,-85,-74,-58,-53,-53,-58,-69,-70,-48,-60,-54,-55,-33,-106,-107,-106,-77,-79,-46,-62,8,-117,-30,-93,-102,-101,-98,-100,-70,-83,-87,-83,-70,-168,-121,-110,-141,-173,-171,-184,-183,-594,-379,-394,-286,-380,-377,-363,-345,-348,-343,-389,-352,-485,-447,-770,-749,-2375,-2700,-12834,-6159]} 1. Nf3 {[%emt 0:00:01]} d5 {[%emt 0:00:01]} 2. d4 {[%emt 0:00:01]} Nf6 {[%emt 0:00:34]} 3. c4 {[%emt 0:00:02]} e6 {[%emt 0:00:01]} 4. g3 {[%emt 0:00:01]} Bb4+ {[%emt 0:00:02]} 5. Bd2 {[%emt 0:00:05]} Bd6 {[%emt 0:00:01]} 6. Nc3 {[%emt 0:00:07] E01: Catalan: Early deviations.} Nbd7 {[%emt 0:00:02][%cal Bb8d7,Bd7f6,Bf6g4][%mdl 32]} 7. Qc2 {[%emt 0:00:08]} O-O {[%emt 0:01:04]} (7... dxc4 $11 8. e4 c5) 8. e4 {[%emt 0:01:51]} (8. c5 $1 $14 Be7 9. Bg2) 8... dxe4 {[%emt 0:00:16]} 9. Nxe4 {[%emt 0:00:16]} Nxe4 {[%emt 0:00:06]} 10. Qxe4 {[%emt 0:00:01]} e5 $1 {[%emt 0:00:02][%cal Be6e5,Be5e4][%mdl 32]} 11. O-O-O {[%emt 0:03:39][%cal Rd4e5]} ({Of course not} 11. Nxe5 Nxe5 12. dxe5 Bxe5 $17) 11... Nf6 {[%emt 0:00:48]} 12. Qh4 {[%emt 0:00:28]} (12. Qc2 $1 $15 Bg4 13. Bg2 exd4 14. Nxd4) 12... Bg4 $17 {[%emt 0:01:34]} 13. Be2 {[%emt 0:01:05]} e4 {[%emt 0:01:35]} 14. Ng1 {[%emt 0:00:06][%cal Bf3g1,Bg1e2,Be2c3][%mdl 32] [#]} Qd7 $146 {[%emt 0:00:01]} ({Predecessor:} 14... Bf5 15. h3 Qd7 16. Qg5 Bg6 17. Qe3 a6 18. Kb1 b5 19. Ka1 Rfc8 20. Bc3 bxc4 21. Bxc4 {0-1 (46) Kobo,O (2412)-Nakar,E (2419) Jerusalem 2015}) 15. Bg5 $1 {[%emt 0:01:09]} Bxe2 {[%emt 0:00:02]} 16. Nxe2 {[%emt 0:00:01]} Ng4 {[%emt 0:00:02]} 17. c5 {[%emt 0:00:01]} f6 {[%emt 0:00:28]} 18. Be3 {[%emt 0:00:20]} Be7 {[%emt 0:00:02]} 19. Nc3 {[%emt 0:01:14]} f5 {[%emt 0:00:03]} 20. Qh3 {[%emt 0:00:05]} b6 {[%emt 0:00:01]} 21. Qf1 {[%emt 0:00:04]} Qe6 $36 {[%emt 0:01:14][%mdl 2048] White is under pressure.} 22. d5 {[%emt 0:00:03]} Nxe3 {[%emt 0:00:02]} 23. dxe6 {[%emt 0:00:32]} (23. fxe3 $15 Qf7 24. c6) 23... Nxf1 {[%emt 0:00:02]} 24. Rhxf1 {[%emt 0:00:01]} Bxc5 {[%emt 0:00:07]} 25. Rd7 {[%emt 0:00:02]} Rfe8 {[%emt 0:00:55]} (25... Rae8 {simplifies} 26. Rxc7 Rxe6 27. Rxa7 Rh6) 26. Nb5 $1 {[%emt 0:00:39]} Re7 {[%emt 0:00:03]} (26... Rad8 $15 27. f3 exf3 28. Rxf3 Rxd7 29. exd7 Rd8) 27. Nxc7 {[%emt 0:00:12]} (27. Rfd1 $1 $11 {keeps the balance.} g6 28. Rxe7 (28. Rxc7 Rxc7 29. Nxc7 Rc8 $15) (28. Nxc7 Rc8 $15) 28... Bxe7 29. Rd7) 27... Rc8 {[%emt 0:00:01]} (27... Rxd7 $17 28. exd7 Rd8) 28. Nd5 {[%emt 0:00:01]} (28. Rfd1 $11 {remains equal.} g6 29. Rxe7 Bxe7 30. Rd7) 28... Rxe6 {[%emt 0:00:01]} (28... Bxf2+ $2 29. Kb1 Rxd7 30. exd7 $18) 29. Kb1 {[%emt 0:00:01]} a5 {[%emt 0:00:07]} 30. a3 {[%emt 0:00:04]} Kf8 {[%emt 0:00:14]} 31. Ne3 {[%emt 0:00:02]} Rf6 {[%emt 0:00:37]} 32. Rfd1 {[%emt 0:00:03]} Re8 {[%emt 0:00:11]} 33. Rb7 {[%emt 0:00:04] [#]} (33. b4 $1 $15 Bxe3 34. fxe3) 33... Re7 {[%emt 0:00:04]} (33... f4 $1 $19 {[%cal Rf4e3]} 34. gxf4 Rxf4) 34. Rxe7 {[%emt 0:00:01]} Bxe7 {[%emt 0:00:02][%mdl 4096] Endgame KRB-KRN} 35. Rd7 {[%emt 0:00:07] [#]} Bc5 $1 {[%emt 0:00:16]} 36. Rb7 {[%emt 0:00:14]} f4 {[%emt 0:00:04] Prevents b4.} 37. Nd5 {[%emt 0:00:04]} (37. gxf4 {is tougher.} Rxf4 38. b4) 37... fxg3 {[%emt 0:00:13]} 38. fxg3 {[%emt 0:00:03]} Rd6 {[%emt 0:00:08]} 39. Nc3 {[%emt 0:00:15]} e3 {[%emt 0:00:01]} 40. Rb8+ {[%emt 0:00:03]} Kf7 {[%emt 0:00:02]} 41. Rb7+ {[%emt 0:00:01]} Kg6 {[%emt 0:00:07]} 42. Re7 {[%emt 0:00:09]} Rd2 {[%emt 0:00:01][%csl LRe7,LRh2]} 43. Re8 {[%emt 0:00:07]} Rxh2 {[%emt 0:00:05] Black is clearly winning.} 44. Na4 {[%emt 0:00:05]} (44. Kc1 $142 Rg2 45. Re4) 44... Bd4 $19 {[%emt 0:00:02] Strongly threatening ...b5.} 45. Re4 {[%emt 0:00:02] Prevents b5.} e2 {[%emt 0:00:03] Hoping for ...Rh1+.} 46. Ka2 {[%emt 0:00:04]} b5 {[%emt 0:00:05] Weighted Error Value: White=0.72/Black=0.22 (precise)} 0-1

[Event "Romanian Rapid Open 2022"]
[Site "Sebes"]
[Date "2022.12.02"]
[Round "5.5"]
[White "Soltanici, Ruslan"]
[Black "Jianu, Vlad-Cristian"]
[Result "1/2-1/2"]
[ECO "B13"]
[WhiteElo "2357"]
[BlackElo "2516"]
[Annotator "TA"]
[PlyCount "101"]
[EventDate "2022.12.02"]
[EventType "rapid"]
[EventCountry "ROU"]
[SourceTitle "playchess.com"]
[Source "ChessBase"]
[SourceQuality "1"]
[TimeControl "600+5"]

{[%evp 13,101,17,8,0,12,5,25,6,34,44,33,24,43,0,0,7,9,8,8,0,9,6,9,10,9,0,0,0,0,0,0,0,15,0,6,0,0,0,0,0,0,0,0,0,0,0,0,0,0,0,0,0,6,6,6,0,0,0,0,0,0,0,0,0,0,0,0,0,0,0,0,0,0,0,0,0,0,0,0,0,0,0,0,0,0,0,0,0,0,0]} 1. e4 {[%emt 0:00:03]} c6 {[%emt 0:00:02]} 2. d4 {[%emt 0:00:15]} d5 {[%emt 0:00:01]} 3. exd5 {[%emt 0:00:03]} cxd5 {[%emt 0:00:01]} 4. c4 {[%emt 0:00:02]} Nf6 {[%emt 0:00:02]} 5. Nc3 {[%emt 0:00:01]} Nc6 {[%emt 0:00:02]} 6. Nf3 {[%emt 0:00:06]} a6 {[%emt 0:00:02]} 7. cxd5 {[%emt 0:00:24]} Nxd5 {[%emt 0:00:02]} 8. Bd3 {[%emt 0:00:01] B13: Caro-Kann: Exchange Variation and Panov-Botvinnik Attack.} g6 {[%emt 0:00:23]} 9. O-O {[%emt 0:01:49]} Bg7 {[%emt 0:00:02]} 10. Be4 {[%emt 0:00:28] [#] White has an edge.} Nf6 $146 {[%emt 0:01:20]} ({Predecessor:} 10... Be6 11. Bg5 O-O 12. h3 h6 13. Bh4 Nxc3 14. bxc3 Bd5 15. Re1 Bxe4 16. Rxe4 Qd5 {½-½ (30) Lopez Gracia,F (2299)-Jaracz,P (2456) Chess.com INT 2021}) 11. Bxc6+ {[%emt 0:00:48]} bxc6 {[%emt 0:00:02]} 12. Re1 {[%emt 0:00:32]} O-O {[%emt 0:00:15]} 13. b3 {[%emt 0:01:21]} Bg4 {[%emt 0:01:03][%cal Oc6c5] The position is equal.} 14. h3 {[%emt 0:00:42] Prevents c5.} Bxf3 {[%emt 0:00:43]} 15. Qxf3 {[%emt 0:00:02]} Qxd4 {[%emt 0:00:09]} (15... Nd5 {simplifies} 16. Nxd5 Qxd5 17. Qxd5 cxd5 18. Ba3 Rfc8) 16. Ba3 {[%emt 0:00:47] [#] Threatens to win with Rad1.} Nd5 {[%emt 0:02:06]} 17. Nxd5 {[%emt 0:00:26]} Qxd5 {[%emt 0:00:03]} 18. Qxd5 cxd5 {[%emt 0:00:01]} 19. Rad1 {[%emt 0:00:18]} Rfc8 {[%emt 0:00:31]} 20. Rxd5 {[%emt 0:01:09]} e6 {[%emt 0:00:19]} 21. Rc5 {[%emt 0:00:02]} Rd8 {[%emt 0:02:03]} 22. Rc2 {[%emt 0:00:13] Inhibits Rd2.} Rd5 {[%emt 0:00:03]} 23. Bb2 {[%emt 0:00:08]} h5 {[%emt 0:00:01]} 24. Bxg7 {[%emt 0:00:09]} Kxg7 $11 {[%emt 0:00:01][%mdl 4096] Endgame KRR-KRR} 25. h4 {[%emt 0:00:17]} Rad8 {[%emt 0:00:03]} 26. g3 {[%emt 0:00:07]} Ra5 {[%emt 0:00:07]} 27. Re4 {[%emt 0:00:55]} Rd1+ {[%emt 0:00:09]} 28. Kg2 {[%emt 0:00:01]} Ra1 {[%emt 0:00:05]} 29. a4 {[%emt 0:01:01]} Rd5 {[%emt 0:00:40]} 30. Rf4 {[%emt 0:00:06]} Rd7 {[%emt 0:00:55]} 31. Rc6 {[%emt 0:00:02]} Rb1 {[%emt 0:00:01]} 32. Rf3 {[%emt 0:00:15]} a5 {[%emt 0:00:19]} 33. Rc5 {[%emt 0:00:02]} Rb7 {[%emt 0:00:50]} 34. Rxa5 {[%emt 0:00:02]} R1xb3 {[%emt 0:00:01]} 35. Rxb3 {[%emt 0:00:02]} Rxb3 {[%emt 0:00:01] KR-KR} 36. Ra7 {[%emt 0:00:09]} Ra3 {[%emt 0:00:01]} 37. a5 {[%emt 0:00:01]} Kf6 {[%emt 0:00:05]} 38. Kf1 {[%emt 0:00:05]} e5 {[%emt 0:00:01]} 39. Ke2 {[%emt 0:00:04]} e4 {[%emt 0:00:06]} 40. Ra6+ {[%emt 0:00:12]} Kf5 {[%emt 0:00:07]} 41. Ra7 {[%emt 0:00:02]} f6 {[%emt 0:00:04][%cal Bf7f6,Bf6g5,Bg5h4][%mdl 32]} 42. Ra6 {[%emt 0:00:05]} g5 {[%emt 0:00:10]} 43. hxg5 {[%emt 0:00:02]} fxg5 {[%emt 0:00:01]} 44. Ra8 $1 {[%emt 0:00:12]} h4 {[%emt 0:00:03]} 45. gxh4 {[%emt 0:00:03]} gxh4 {[%emt 0:00:01]} 46. a6 {[%emt 0:00:02]} Kg6 {[%emt 0:00:28]} 47. Rh8 {[%emt 0:00:12]} Kg5 {[%emt 0:00:18]} 48. Ra8 {[%emt 0:00:08] [#] aiming for a7.} Kg6 {[%emt 0:00:01]} 49. Rh8 {[%emt 0:00:02]} Rxa6 {[%emt 0:00:03]} 50. Rxh4 {[%emt 0:00:02]} Kf5 {[%emt 0:00:00]} 51. Rh8 {[%emt 0:00:02] Weighted Error Value: White=0.03 (flawless) /Black=0.03 (flawless)} 1/2-1/2